lending/lending_fUSD_20250315
["ID","MTS","AMOUNT","RATE_DAILY","PERIOD"]
[356191169,1742053889995,-500.0,0.00044657,120]
[356191170,1742053890005,-973.66,0.00044657,120]
[356191171,1742053890015,-500.0,0.00044657,120]
[356191172,1742053890026,-500.0,0.00044657,120]
[356191173,1742053890037,-500.0,0.00044657,120]
[356191174,1742053890047,-1185.5,0.00044657,120]
[356191175,1742053890057,-500.0,0.00044657,120]
[356191176,1742053890067,-1185.63,0.00044657,120]
[356191177,1742053890077,-775.97,0.00044657,120]
[356191178,1742053890088,-500.0,0.00044657,120]
[356191179,1742053890098,-861.38,0.00044657,120]
[356191180,1742053890110,-500.0,0.00044657,120]
[356191181,1742053890120,-500.0,0.00044657,120]
[356191182,1742053890131,-500.0,0.00044657,120]
[356191183,1742053890140,-1156.91,0.00044657,120]
[356191184,1742053890151,-500.0,0.00044657,120]
[356191185,1742053890161,-500.0,0.00044657,120]
[356191186,1742053890171,-500.0,0.00044657,120]
[356191187,1742053890180,-500.0,0.00044657,120]
[356191188,1742053890191,-500.0,0.00044657,120]
[356191189,1742053890201,-500.0,0.00044657,120]
[356191190,1742053890211,-561.56,0.00044657,120]
[356191191,1742053890221,-887.11,0.00044657,120]
[356191192,1742053890232,-500.0,0.00044657,120]
[356191193,1742053890242,-1007.49,0.00044657,120]
[356191194,1742053890252,-500.0,0.00044657,120]
[356191195,1742053890262,-500.0,0.00044657,120]
[356191196,1742053890271,-205.05705106,0.00044657,120]
[356191197,1742053890282,-500.0,0.00044657,120]
[356191198,1742053890292,-500.0,0.00044657,120]
[356191199,1742053890302,-500.0,0.00044657,120]
[356191200,1742053890311,-620.75,0.00044657,120]
[356191201,1742053890322,-500.0,0.00044657,120]
[356191202,1742053890331,-589.11,0.00044657,120]
[356191203,1742053890342,-626.63,0.00044657,120]
[356191204,1742053890352,-500.0,0.00044657,120]
[356191205,1742053890363,-500.0,0.00044657,120]
[356191206,1742053890373,-500.0,0.00044657,120]
[356191207,1742053890386,-500.0,0.00044657,120]
[356191208,1742053890397,-500.0,0.00044657,120]
[356191209,1742053890408,-608.9,0.00044657,120]
[356191210,1742053890419,-500.0,0.00044657,120]
[356191211,1742053890430,-1075.99,0.00044657,120]
[356191212,1742053890441,-500.0,0.00044657,120]
[356191213,1742053890453,-651.54,0.00044657,120]
[356191214,1742053890464,-500.0,0.00044657,120]
[356191215,1742053890475,-500.0,0.00044657,120]
[356191216,1742053890487,-500.0,0.00044657,120]
[356191217,1742053890498,-500.0,0.00044657,120]
[356191218,1742053890509,-523.90258875,0.00044657,120]
[356191219,1742053890522,-587.95,0.00044657,120]
[356191220,1742053890533,-520.97,0.00044657,120]
[356191221,1742053890544,-500.0,0.00044657,120]
[356191222,1742053890554,-689.44,0.00044657,120]
[356191223,1742053890564,-656.92,0.00044657,120]
[356191224,1742053890575,-190.49475398,0.00044657,120]
[356191225,1742053890586,-625.42805702,0.00044657,120]
[356191226,1742053890597,-766.74,0.00044657,120]
[356191227,1742053890608,-500.0,0.00044657,120]
[356191228,1742053890621,-500.0,0.00044657,120]
[356191229,1742053890631,-506.08,0.00044657,120]
[356191230,1742053890641,-612.67,0.00044657,120]
[356191231,1742053890651,-500.0,0.00044657,120]
[356191232,1742053890660,-574.4522852,0.00044657,120]
[356191233,1742053890671,-2035.5,0.00044657,120]
[356191234,1742053890680,-500.0,0.00044657,120]
[356191235,1742053890691,-1143.35,0.00044657,120]
[356191236,1742053890701,-500.0,0.00044657,120]
[356191237,1742053890710,-500.0,0.00044657,120]
[356191238,1742053890720,-500.0,0.00044657,120]
[356191239,1742053890730,-500.0,0.00044657,120]
[356191240,1742053890740,-500.0,0.00044657,120]
[356191241,1742053890749,-500.0,0.00044657,120]
[356191242,1742053890758,-500.0,0.00044657,120]
[356191243,1742053890769,-797.83,0.00044657,120]
[356191244,1742053890780,-758.7,0.00044657,120]
[356191245,1742053890791,-500.0,0.00044657,120]
[356191246,1742053890801,-500.0,0.00044657,120]
[356191247,1742053890811,-507.26759231,0.00044657,120]
[356191248,1742053890821,-500.0,0.00044657,120]
[356191249,1742053890831,-500.0,0.00044657,120]
[356191250,1742053890841,-500.0,0.00044657,120]
[356191251,1742053890850,-500.0,0.00044657,120]
[356191252,1742053890860,-500.0,0.00044657,120]
[356191253,1742053890870,-1150.14,0.00044657,120]
[356191254,1742053890880,-500.0,0.00044657,120]
[356191255,1742053890890,-500.0,0.00044657,120]
[356191256,1742053890900,-500.0,0.00044657,120]
[356191257,1742053890911,-500.0,0.00044657,120]
[356191258,1742053890921,-813.1,0.00044657,120]
[356191259,1742053890931,-500.0,0.00044657,120]
[356191260,1742053890940,-534.78957519,0.00044657,120]
[356191261,1742053890947,-505.94349831,0.00044657,120]
[356191262,1742053890955,-467.16710139,0.00044657,120]
[356191263,1742053890963,-500.0,0.00044657,120]
[356191264,1742053890971,-500.0,0.00044657,120]
[356191265,1742053890980,-500.0,0.00044657,120]
[356191266,1742053890988,-500.0,0.00044657,120]
[356191267,1742053890996,-500.0,0.00044657,120]
[356191268,1742053891004,-500.0,0.00044657,120]
[356191269,1742053891015,-500.0,0.00044657,120]
[356191270,1742053891025,-626.61,0.00044657,120]
[356191271,1742053891035,-620.62,0.00044657,120]
[356191272,1742053891045,-507.65460758,0.00044657,120]
[356191273,1742053891054,-500.0,0.00044657,14]
[356191274,1742053891064,-500.0,0.00044657,120]
[356191275,1742053891074,-753.36,0.00044657,120]
[356191276,1742053891084,-500.0,0.00044657,120]
[356191277,1742053891095,-2527.04,0.00044657,120]
[356191278,1742053891105,-505.34204628,0.00044657,120]
[356191279,1742053891116,-500.0,0.00044657,120]
[356191280,1742053891127,-500.0,0.00044657,120]
[356191281,1742053891137,-500.0,0.00044657,120]
[356191282,1742053891148,-159.64613932,0.00044657,120]
[356191283,1742053891158,-500.0,0.00044657,120]
[356191284,1742053891168,-749.59,0.00044657,120]
[356191285,1742053891179,-500.0,0.00044657,120]
[356191286,1742053891190,-500.0,0.00044657,120]
[356191287,1742053891201,-500.0,0.00044657,120]
[356191288,1742053891211,-500.0,0.00044657,120]
[356191289,1742053891222,-500.0,0.00044657,120]
[356191290,1742053891233,-500.0,0.00044657,120]
[356191291,1742053891243,-500.0,0.00044657,120]
[356191292,1742053891254,-500.0,0.00044657,120]
[356191293,1742053891265,-500.0,0.00044657,120]
[356191294,1742053891275,-500.0,0.00044657,120]
[356191295,1742053891286,-500.0,0.00044657,120]
[356191296,1742053891296,-531.99,0.00044657,120]
[356191297,1742053891306,-1446.97,0.00044657,120]
[356191298,1742053891316,-500.0,0.00044657,120]
[356191299,1742053891325,-500.0,0.00044657,120]
[356191300,1742053891334,-500.0,0.00044657,120]
[356191301,1742053891344,-500.0,0.00044657,120]
[356191302,1742053891353,-500.0,0.00044657,120]
[356191303,1742053891363,-500.0,0.00044657,120]
[356191304,1742053891373,-2052.71,0.00044657,120]
[356191305,1742053891383,-996.96,0.00044657,120]
[356191306,1742053891394,-523.18,0.00044657,120]
[356191307,1742053891403,-500.0,0.00044657,120]
[356191308,1742053891412,-505.4299744,0.00044657,120]
[356191309,1742053891422,-500.0,0.00044657,120]
[356191310,1742053891432,-500.0,0.00044657,120]
[356191311,1742053891441,-641.35,0.00044657,120]
[356191312,1742053891451,-500.0,0.00044657,120]
[356191313,1742053891461,-500.0,0.00044657,120]
[356191314,1742053891668,-500.0,0.00044657,120]
[356191315,1742053891678,-1032.89,0.00044657,120]
[356191316,1742053891688,-500.0,0.00044657,120]
[356191317,1742053891698,-500.0,0.00044657,120]
[356191318,1742053891708,-753.77,0.00044657,120]
[356191319,1742053891717,-500.0,0.00044657,120]
[356191320,1742053891727,-500.0,0.00044657,120]
[356191321,1742053891736,-500.0,0.00044657,120]
[356191322,1742053891746,-500.0,0.00044657,120]
[356191323,1742053891756,-389.95178142,0.00044657,120]
[356191324,1742053891766,-648.9,0.00044657,120]
[356191325,1742053891775,-500.0,0.00044657,120]
[356191326,1742053891785,-500.0,0.00044657,120]
[356191327,1742053891796,-500.0,0.00044657,120]
[356191328,1742053891807,-500.0,0.00044657,120]
[356191329,1742053891816,-1273.12,0.00044657,120]
[356191330,1742053891826,-610.46,0.00044657,120]
[356191331,1742053891835,-500.0,0.00044657,120]
[356191332,1742053891844,-500.0,0.00044657,120]
[356191333,1742053891854,-650.39,0.00044657,120]
[356191334,1742053891863,-1171.76,0.00044657,120]
[356191335,1742053891873,-500.0,0.00044657,120]
[356191336,1742053891882,-500.0,0.00044657,120]
[356191337,1742053891891,-500.0,0.00044657,120]
[356191338,1742053891900,-500.0,0.00044657,120]
[356191339,1742053891908,-530.76,0.00044657,120]
[356191340,1742053891915,-500.0,0.00044657,120]
[356191341,1742053891923,-500.0,0.00044657,120]
[356191342,1742053891931,-500.0,0.00044657,120]
[356191343,1742053891939,-500.0,0.00044657,120]
[356191344,1742053891947,-500.0,0.00044657,120]
[356191345,1742053891956,-500.0,0.00044657,120]
[356191346,1742053891963,-500.0,0.00044657,120]
[356191347,1742053891971,-1479.89,0.00044657,120]
[356191348,1742053891979,-500.0,0.00044657,120]
[356191349,1742053891988,-1282.34,0.00044657,120]
[356191350,1742053891996,-1050.25,0.00044657,120]
[356191351,1742053892004,-500.0,0.00044657,120]
[356191352,1742053892012,-502.66415056,0.00044657,120]
[356191353,1742053892024,-500.0,0.00044657,120]
[356191354,1742053892034,-990.99,0.00044657,120]
[356191355,1742053892044,-500.0,0.00044657,120]
[356191356,1742053892054,-500.0,0.00044657,120]
[356191357,1742053892063,-500.0,0.00044657,120]
[356191358,1742053892073,-3264.2,0.00044657,2]
[356191359,1742053892083,-500.0,0.00044657,120]
[356191360,1742053892093,-773.74,0.00044657,120]
[356191361,1742053892102,-500.0,0.00044657,120]
[356191362,1742053892111,-500.0,0.00044657,120]
[356191363,1742053892121,-2327.15,0.00044657,120]
[356191364,1742053892131,-1175.34,0.00044657,120]
[356191365,1742053892141,-500.0,0.00044657,120]
[356191366,1742053892151,-502.34,0.00044657,120]
[356191367,1742053892160,-500.0,0.00044657,120]
[356191368,1742053892170,-500.0,0.00044657,120]
[356191369,1742053892180,-500.0,0.00044657,120]
[356191370,1742053892191,-520.15,0.00044657,120]
[356191371,1742053892200,-500.0,0.00044657,120]
[356191372,1742053892211,-557.88,0.00044657,120]
[356191373,1742053892221,-748.79,0.00044657,120]
[356191374,1742053892231,-500.0,0.00044657,120]
[356191375,1742053892241,-500.0,0.00044657,120]
[356191376,1742053892252,-500.0,0.00044657,120]
[356191377,1742053892262,-500.0,0.00044657,120]
[356191378,1742053892274,-500.0,0.00044657,120]
[356191379,1742053892284,-722.45,0.00044657,120]
[356191380,1742053892293,-669.08,0.00044657,120]
[356191381,1742053892303,-687.02,0.00044657,120]
[356191382,1742053892313,-500.0,0.00044657,120]
[356191383,1742053892323,-500.0,0.00044657,120]
[356191384,1742053892333,-748.88,0.00044657,120]
[356191385,1742053892343,-663.09,0.00044657,120]
[356191386,1742053892352,-1173.43,0.00044657,120]
[356191387,1742053892362,-500.0,0.00044657,120]
[356191388,1742053892372,-500.0,0.00044657,120]
[356191389,1742053892381,-470.83908629,0.00044657,120]
[356191390,1742053892392,-500.0,0.00044657,120]
[356191391,1742053892401,-847.66,0.00044657,120]
[356191392,1742053892410,-300.0,0.00044657,2]
[356191393,1742053892419,-500.0,0.00044657,120]
[356191394,1742053892429,-1163.67,0.00044657,120]
[356191395,1742053892438,-514.7,0.00044657,120]
[356191396,1742053892448,-500.0,0.00044657,120]
[356191397,1742053892458,-500.0,0.00044657,120]
[356191398,1742053892468,-827.32,0.00044657,120]
[356191399,1742053892477,-1012.94,0.00044657,120]
[356191400,1742053892487,-500.0,0.00044657,120]
[356191401,1742053892496,-747.63,0.00044657,120]
[356191402,1742053892506,-1386.77,0.00044657,120]
[356191403,1742053892516,-500.0,0.00044657,120]
[356191404,1742053892526,-500.0,0.00044657,120]
[356191405,1742053892536,-1376.82,0.00044657,120]
[356191406,1742053892545,-500.0,0.00044657,120]
[356191407,1742053892555,-1597.18,0.00044657,10]
[356191408,1742053892565,-570.51,0.00044657,120]
[356191409,1742053892574,-500.0,0.00044657,120]
[356191410,1742053892584,-1441.32,0.00044657,120]
[356191411,1742053892593,-500.0,0.00044657,120]
[356191412,1742053892602,-500.0,0.00044657,120]
[356191413,1742053892613,-500.0,0.00044657,120]
[356191414,1742053892625,-500.0,0.00044657,120]
[356191415,1742053892635,-572.02,0.00044657,120]
[356191416,1742053892644,-500.0,0.00044657,120]
[356191417,1742053892654,-2861.57,0.00044657,120]
[356191418,1742053892666,-574.93,0.00044657,120]
[356191419,1742053892675,-500.0,0.00044657,120]
[356191420,1742053892686,-500.0,0.00044657,120]
[356191421,1742053892695,-496.15035467,0.00044657,120]
[356191422,1742053892705,-500.0,0.00044657,120]
[356191423,1742053892715,-500.0,0.00044657,120]
[356191424,1742053892724,-500.0,0.00044657,120]
[356191425,1742053892734,-500.0,0.00044657,120]
[356191426,1742053892743,-500.0,0.00044657,120]
[356191427,1742053892753,-500.0,0.00044657,120]
[356191428,1742053892762,-555.57,0.00044657,120]
[356191429,1742053892775,-500.0,0.00044657,120]
[356191430,1742053892785,-500.0,0.00044657,120]
[356191431,1742053892795,-500.0,0.00044657,120]
[356191432,1742053892805,-500.0,0.00044657,120]
[356191433,1742053892815,-500.0,0.00044657,120]
[356191434,1742053892824,-500.0,0.00044657,120]
[356191435,1742053892833,-500.0,0.00044657,120]
[356191436,1742053892843,-1228.87,0.00044657,120]
[356191437,1742053892852,-1049.4,0.00044657,120]
[356191438,1742053892862,-2411.92,0.00044657,120]
[356191439,1742053892872,-500.0,0.00044657,7]
[356191440,1742053892882,-1448.75,0.00044657,120]
[356191441,1742053892892,-1506.99,0.00044657,120]
[356191442,1742053892902,-500.0,0.00044657,120]
[356191443,1742053892912,-2006.48,0.00044657,120]
[356191444,1742053892922,-500.0,0.00044657,120]
[356191445,1742053892932,-500.0,0.00044657,120]
[356191446,1742053892942,-1433.68,0.00044657,120]
[356191447,1742053892953,-500.0,0.00044657,120]
[356191448,1742053892962,-500.0,0.00044657,120]
[356191449,1742053892972,-828.85,0.00044657,120]
[356191450,1742053892982,-500.0,0.00044657,120]
[356191451,1742053892992,-500.0,0.00044657,120]
[356191452,1742053893004,-500.0,0.00044657,120]
[356191453,1742053893014,-500.0,0.00044657,120]
[356191454,1742053893024,-500.0,0.00044657,120]
[356191455,1742053893034,-506.17605422,0.00044657,120]
[356191456,1742053893044,-500.0,0.00044657,120]
[356191457,1742053893055,-714.84,0.00044657,120]
[356191458,1742053893065,-587.09,0.00044657,120]
[356191459,1742053893075,-1381.6,0.00044657,120]
[356191460,1742053893086,-500.0,0.00044657,120]
[356191461,1742053893096,-2000.0,0.00044657,30]
[356191462,1742053893107,-500.0,0.00044657,120]
[356191463,1742053893116,-597.77,0.00044657,120]
[356191464,1742053893126,-508.25,0.00044657,120]
[356191465,1742053893136,-937.38,0.00044657,120]
[356191466,1742053893147,-500.0,0.00044657,120]
[356191467,1742053893156,-500.0,0.00044657,120]
[356191468,1742053893167,-200.0,0.00044657,7]
[356191469,1742053893176,-841.63,0.00044657,120]
[356191470,1742053893187,-500.0,0.00044657,120]
[356191471,1742053893197,-760.2,0.00044657,120]
[356191472,1742053893208,-500.0,0.00044657,120]
[356191473,1742053893219,-377.12,0.00044657,120]
[356191474,1742053893230,-500.0,0.00044657,120]
[356191475,1742053893241,-500.0,0.00044657,120]
[356191476,1742053893252,-686.86,0.00044657,120]
[356191477,1742053893262,-644.35,0.00044657,120]
[356191478,1742053893276,-238.8291659,0.00044657,120]
[356191479,1742053893286,-540.84450719,0.00044657,120]
[356191480,1742053893296,-1449.8,0.00044657,120]
[356191481,1742053893307,-500.0,0.00044657,120]
[356191482,1742053893317,-500.0,0.00044657,120]
[356191483,1742053893327,-500.0,0.00044657,120]
[356191484,1742053893337,-500.0,0.00044657,120]
[356191485,1742053893347,-747.56,0.00044657,120]
[356191486,1742053893357,-500.0,0.00044657,120]
[356191487,1742053893367,-500.0,0.00044657,120]
[356191488,1742053893377,-524.75287564,0.00044657,120]
[356191489,1742053893387,-1423.66,0.00044657,120]
[356191490,1742053893396,-500.0,0.00044657,120]
[356191491,1742053893406,-947.82,0.00044657,120]
[356191492,1742053893416,-500.0,0.00044657,120]
[356191493,1742053893426,-500.0,0.00044657,120]
[356191494,1742053893436,-500.0,0.00044657,120]
[356191495,1742053893446,-1355.39,0.00044657,120]
[356191496,1742053893456,-500.0,0.00044657,120]
[356191497,1742053893466,-500.0,0.00044657,120]
[356191498,1742053893476,-899.19,0.00044657,120]
[356191499,1742053893486,-500.0,0.00044657,120]
[356191500,1742053893496,-500.0,0.00044657,120]
[356191501,1742053893506,-1625.35,0.00044657,120]
[356191502,1742053893517,-934.02,0.00044657,120]
[356191503,1742053893529,-733.98,0.00044657,120]
[356191504,1742053893539,-500.0,0.00044657,120]
[356191505,1742053893550,-500.0,0.00044657,120]
[356191506,1742053893565,-580.86,0.00044657,120]
[356191507,1742053893579,-590.4,0.00044657,120]
[356191508,1742053893589,-3163.61,0.00044657,120]
[356191509,1742053893599,-500.0,0.00044657,120]
[356191510,1742053893609,-500.0,0.00044657,120]
[356191511,1742053893622,-1000.0,0.00044657,35]
[356191512,1742053893632,-500.0,0.00044657,120]
[356191513,1742053893642,-500.0,0.00044657,120]
[356191514,1742053893652,-500.0,0.00044657,120]
[356191515,1742053893663,-500.0,0.00044657,120]
[356191516,1742053893672,-500.0,0.00044657,120]
[356191517,1742053893682,-500.0,0.00044657,120]
[356191518,1742053893694,-500.0,0.00044657,120]
[356191519,1742053893704,-631.35,0.00044657,120]
[356191520,1742053893714,-500.0,0.00044657,120]
[356191521,1742053893724,-681.44,0.00044657,120]
[356191522,1742053893735,-500.0,0.00044657,120]
[356191523,1742053893745,-1633.98,0.00044657,120]
[356191524,1742053893755,-500.0,0.00044657,120]
[356191525,1742053893765,-500.0,0.00044657,120]
[356191526,1742053893775,-500.0,0.00044657,120]
[356191527,1742053893786,-500.0,0.00044657,120]
[356191528,1742053893796,-500.0,0.00044657,120]
[356191529,1742053893806,-500.0,0.00044657,120]
[356191530,1742053893815,-500.0,0.00044657,120]
[356191531,1742053893825,-523.84,0.00044657,120]
[356191532,1742053893835,-621.49,0.00044657,60]
[356191533,1742053893845,-808.8,0.00044657,120]
[356191534,1742053893855,-500.0,0.00044657,120]
[356191535,1742053893865,-500.0,0.00044657,120]
[356191536,1742053893874,-500.0,0.00044657,120]
[356191537,1742053893884,-500.0,0.00044657,120]
[356191538,1742053893894,-500.0,0.00044657,120]
[356191539,1742053893903,-500.0,0.00044657,120]
[356191540,1742053893913,-500.0,0.00044657,120]
[356191541,1742053893924,-500.0,0.00044657,120]
[356191542,1742053893933,-155.43404849,0.00044657,120]
[356191543,1742053893943,-1301.84,0.00044657,120]
[356191544,1742053893952,-759.47,0.00044657,120]
[356191545,1742053893962,-1221.57,0.00044657,120]
[356191546,1742053893973,-500.0,0.00044657,120]
[356191547,1742053893983,-500.0,0.00044657,120]
[356191548,1742053893992,-647.58,0.00044657,120]
[356191549,1742053894003,-500.0,0.00044657,120]
[356191550,1742053894013,-519.0,0.00044657,120]
[356191551,1742053894025,-500.0,0.00044657,120]
[356191552,1742053894035,-2109.77,0.00044657,7]
[356191553,1742053894045,-500.0,0.00044657,120]
[356191554,1742053894055,-500.0,0.00044657,120]
[356191555,1742053894065,-500.0,0.00044657,120]
[356191556,1742053894075,-1636.07,0.00044657,120]
[356191557,1742053894086,-1171.97,0.00044657,120]
[356191558,1742053894096,-500.0,0.00044657,120]
[356191559,1742053894106,-500.0,0.00044657,120]
[356191560,1742053894117,-553.02,0.00044657,120]
[356191561,1742053894127,-1130.0,0.00044657,120]
[356191562,1742053894138,-842.43,0.00044657,120]
[356191563,1742053894149,-500.0,0.00044657,30]
[356191564,1742053894160,-500.0,0.00044657,120]
[356191565,1742053894170,-694.15,0.00044657,120]
[356191566,1742053894180,-500.0,0.00044657,120]
[356191567,1742053894190,-500.0,0.00044657,120]
[356191568,1742053894200,-524.61344018,0.00044657,45]
[356191569,1742053894210,-500.0,0.00044657,120]
[356191570,1742053894221,-1744.4,0.00044657,120]
[356191571,1742053894231,-500.0,0.00044657,120]
[356191572,1742053894241,-1350.2,0.00044657,120]
[356191573,1742053894251,-500.0,0.00044657,120]
[356191574,1742053894261,-990.04,0.00044657,120]
[356191575,1742053894271,-500.0,0.00044657,120]
[356191576,1742053894282,-431.80550813,0.00044661,30]
[356191577,1742053894293,-175.66532715,0.00044661,30]
[356191578,1742053894303,-150.0,0.00044683,30]
[356191579,1742053894312,-300.0,0.000447,120]
[356191580,1742053894323,-174.33524053,0.00044756,120]
[356191581,1742053894333,-431.80550813,0.00044772,30]
[356191582,1742053894343,-175.66532715,0.00044772,30]
[356191583,1742053894353,-3611.71964949,0.00044792,120]
[356191584,1742053894363,-3000.00000099,0.000448,120]
[356191585,1742053894373,-150.0,0.00044805,30]
[356191586,1742053894383,-305.55625196,0.00044865,2]
[356191587,1742053894393,-150.0,0.00044875,30]
[356191588,1742053894404,-5150.0,0.0004488,31]
[356191589,1742053894414,-5150.0,0.0004488,32]
[356191590,1742053894425,-5150.0,0.0004488,33]
[356191591,1742053894435,-4535.2366284,0.0004488,34]
[356191592,1742053894851,-614.7633716,0.0004488,34]
[356191593,1742053894861,-431.80550813,0.00044883,30]
[356191594,1742053894873,-175.66532715,0.00044883,30]
[356191595,1742053894883,-1600.0,0.000449,16]
[356191596,1742053894892,-418.1684465,0.000449,120]
[356191597,1742053894902,-418.16844633,0.000449,120]
[356191598,1742053895132,-418.16844633,0.000449,120]
[356191599,1742053895150,-418.16844633,0.000449,120]
[356191600,1742053895160,-418.16844633,0.000449,120]
[356191601,1742053895170,-418.16844633,0.000449,120]
[356191602,1742053895180,-418.16844633,0.000449,120]
[356191603,1742053895190,-418.16844633,0.000449,120]
[356191604,1742053895200,-418.16844633,0.000449,120]
[356191605,1742053895211,-418.16844633,0.000449,120]
[356191606,1742053895221,-418.16844633,0.000449,120]
[356191607,1742053895231,-418.16844633,0.000449,120]
[356191608,1742053895241,-418.16844633,0.000449,120]
[356191609,1742053895251,-418.16844633,0.000449,120]
[356191610,1742053895261,-418.16844633,0.000449,120]
[356191611,1742053895272,-418.16844633,0.000449,120]
[356191612,1742053895281,-418.16844633,0.000449,120]
[356191613,1742053895291,-418.16844633,0.000449,120]
[356191614,1742053895301,-418.16844633,0.000449,120]
[356191615,1742053895310,-418.16844633,0.000449,120]
[356191616,1742053895319,-150.0,0.00044927,30]
[356191617,1742053895329,-1776.139583,0.00044931,120]
[356191618,1742053895338,-156.627222,0.00044931,120]
[356191619,1742053895347,-2211.484103,0.00044931,120]
[356191620,1742053895356,-500.0,0.00044931,120]
[356191621,1742053895365,-500.0,0.00044931,120]
[356191622,1742053895374,-452.32815588,0.00044931,120]
[356191623,1742053895383,-462.51839924,0.00044931,120]
[356191624,1742053895394,-500.0,0.00044931,120]
[356191625,1742053895403,-526.78529154,0.00044931,120]
[356191626,1742053895413,-702.17,0.00044931,120]
[356191627,1742053895423,-500.0,0.00044931,120]
[356191628,1742053895433,-500.0,0.00044931,120]
[356191629,1742053895444,-500.0,0.00044931,120]
[356191630,1742053895455,-512.81163778,0.00044931,120]
[356191631,1742053895465,-647.47,0.00044931,120]
[356191632,1742053895476,-513.74,0.00044931,120]
[356191633,1742053895486,-500.0,0.00044931,120]
[356191634,1742053895496,-625.37,0.00044931,120]
[356191635,1742053895506,-500.0,0.00044931,120]
[356191636,1742053895516,-500.0,0.00044931,120]
[356191637,1742053895526,-500.0,0.00044931,120]
[356191638,1742053895536,-500.0,0.00044931,30]
[356191639,1742053895545,-679.91,0.00044931,120]
[356191640,1742053895555,-500.0,0.00044931,120]
[356191641,1742053895565,-500.0,0.00044931,120]
[356191642,1742053895575,-500.0,0.00044931,120]
[356191643,1742053895587,-500.0,0.00044931,120]
[356191644,1742053895597,-608.52,0.00044931,120]
[356191645,1742053895607,-500.0,0.00044931,120]
[356191646,1742053895621,-1500.0,0.00044931,120]
[356191647,1742053895631,-500.0,0.00044931,120]
[356191648,1742053895640,-500.0,0.00044931,120]
[356191649,1742053895650,-500.0,0.00044931,120]
[356191650,1742053895661,-500.0,0.00044931,120]
[356191651,1742053895670,-531.32,0.00044931,120]
[356191652,1742053895679,-500.0,0.00044931,120]
[356191653,1742053895688,-500.0,0.00044931,120]
[356191654,1742053895699,-514.12,0.00044931,120]
[356191655,1742053895709,-653.7,0.00044931,120]
[356191656,1742053895718,-500.0,0.00044931,120]
[356191657,1742053895728,-567.71325904,0.00044931,120]
[356191658,1742053895739,-500.0,0.00044931,120]
[356191659,1742053895749,-500.0,0.00044931,120]
[356191660,1742053895759,-625.67,0.00044931,120]
[356191661,1742053895769,-500.0,0.00044931,120]
[356191662,1742053895779,-1473.36,0.00044931,120]
[356191663,1742053895789,-500.0,0.00044931,120]
[356191664,1742053895798,-500.0,0.00044931,120]
[356191665,1742053895808,-500.0,0.00044931,120]
[356191666,1742053895818,-507.3687601,0.00044931,120]
[356191667,1742053895827,-500.0,0.00044931,120]
[356191668,1742053895837,-500.0,0.00044931,120]